Workbook

Sheet Sheet1
A1: 高新区2019年耕地地力保护补贴信息公示表
A3: 高新区老庄子镇各村各户2019年耕地地力保护补贴公示
A5: 陈家庄：
A6: 序 号 | B6: 户主姓名 | C6: 2019年补贴土地面积 | D6: 补贴标准(元/亩) | E6: 耕地地力保护金额
A7: 001 | B7: 荣振祥 | C7: 4.42 | D7: 94.30 | E7: =D7*C7 -> 416.81
A8: 002 | B8: 周树云 | C8: 2.85 | D8: 94.30 | E8: =D8*C8 -> 268.76
A9: 003 | B9: 周树臣 | C9: 3.12 | D9: 94.30 | E9: 294.22
A10: 004 | B10: 周树彬 | C10: 1.54 | D10: 94.30 | E10: 145.22
A11: 005 | B11: 史建付 | C11: 2 | D11: 94.30 | E11: 188.60
A12: 006 | B12: 刘士海 | C12: 1.36 | D12: 94.30 | E12: 128.25
A13: 007 | B13: 刘士宏 | C13: 1.09 | D13: 94.30 | E13: 102.79
A14: 008 | B14: 刘士侠 | C14: 1.29 | D14: 94.30 | E14: 121.65
A15: 009 | B15: 计国军 | C15: 2.18 | D15: 94.30 | E15: 205.57
A16: 010 | B16: 周树友 | C16: 1.97 | D16: 94.30 | E16: 185.77
A17: 011 | B17: 王国臣 | C17: 2.37 | D17: 94.30 | E17: 223.49
A18: 012 | B18: 周晨阳 | C18: 2.63 | D18: 94.30 | E18: 248.01
A19: 013 | B19: 周士香 | C19: 2.74 | D19: 94.30 | E19: 258.38
A20: 014 | B20: 荣振东 | C20: 6.36 | D20: 94.30 | E20: 599.75
A21: 015 | B21: 荣振军 | C21: 5.99 | D21: 94.30 | E21: 564.86
A22: 016 | B22: 周子江 | C22: 5.81 | D22: 94.30 | E22: 547.88
A23: 017 | B23: 周子龙 | C23: 7.47 | D23: 94.30 | E23: 704.42
A24: 018 | B24: 周士贵 | C24: 4.98 | D24: 94.30 | E24: 469.61
A25: 019 | B25: 周树刚 | C25: 3.32 | D25: 94.30 | E25: 313.08
A26: 020 | B26: 杨少奇 | C26: 8.29 | D26: 94.30 | E26: 781.75
A27: 021 | B27: 荣振宇 | C27: 5.81 | D27: 94.30 | E27: 547.88
A28: 022 | B28: 荣振成 | C28: 7.47 | D28: 94.30 | E28: 704.42
A29: 023 | B29: 李久明 | C29: 4.98 | D29: 94.30 | E29: 469.61
A30: 024 | B30: 李久利 | C30: 4.88 | D30: 94.30 | E30: 460.18
A31: 025 | B31: 陆明 | C31: 9.12 | D31: 94.30 | E31: 860.02
A32: 026 | B32: 陆旭 | C32: 9.12 | D32: 94.30 | E32: 860.02
A33: 027 | B33: 王瑞祥 | C33: 8.165 | D33: 94.30 | E33: 769.96
A34: 028 | B34: 闫素香 | C34: 9.94 | D34: 94.30 | E34: 937.34
A35: 029 | B35: 王瑞刚 | C35: 6.165 | D35: 94.30 | E35: 581.36
A36: 030 | B36: 徐桂平 | C36: 6.03 | D36: 94.30 | E36: 568.63
A37: 031 | B37: 周树田 | C37: 3.32 | D37: 94.30 | E37: 313.08
A38: 032 | B38: 李久存 | C38: 7.74 | D38: 94.30 | E38: 729.88
A39: 033 | B39: 郭庆娟 | C39: 7.74 | D39: 94.30 | E39: 729.88
A40: 034 | B40: 荣振记 | C40: 5.54 | D40: 94.30 | E40: 522.42
A41: 035 | B41: 荣振宗 | C41: 7.18 | D41: 94.30 | E41: 677.07
A42: 036 | B42: 荣振存 | C42: 7.18 | D42: 94.30 | E42: 677.07
A43: 037 | B43: 杨振启 | C43: 4 | D43: 94.30 | E43: 377.20
A44: 038 | B44: 杨少春 | C44: 3.26 | D44: 94.30 | E44: 307.42
A45: 039 | B45: 杨振江 | C45: 4.68 | D45: 94.30 | E45: 441.32
A46: 040 | B46: 杨振海 | C46: 4.59 | D46: 94.30 | E46: 432.84
A47: 041 | B47: 杨少芳 | C47: 5.71 | D47: 94.30 | E47: 538.45
A48: 042 | B48: 王瑞龙 | C48: 7.47 | D48: 94.30 | E48: 704.42
A49: 043 | B49: 韩俊霞 | C49: 4.41 | D49: 94.30 | E49: 415.86
A50: 044 | B50: 王文强 | C50: 3.87 | D50: 94.30 | E50: 364.94
A51: 045 | B51: 李小平 | C51: 2.93 | D51: 94.30 | E51: 276.30
A52: 046 | B52: 李秀刚 | C52: 5.47 | D52: 94.30 | E52: 515.82
A53: 047 | B53: 王瑞明 | C53: 4.4 | D53: 94.30 | E53: 414.92
A54: 048 | B54: 李秀强 | C54: 5.97 | D54: 94.30 | E54: 562.97
A55: 049 | B55: 韩武 | C55: 7.47 | D55: 94.30 | E55: 704.42
A56: 050 | B56: 韩文 | C56: 6.97 | D56: 94.30 | E56: 657.27
A57: 051 | B57: 李小营 | C57: 7.47 | D57: 94.30 | E57: 704.42
A58: 052 | B58: 李小红 | C58: 5.81 | D58: 94.30 | E58: 547.88
A59: 053 | B59: 史洪洲 | C59: 4.97 | D59: 94.30 | E59: 468.67
A60: 054 | B60: 周树立 | C60: 6.13 | D60: 94.30 | E60: 578.06
A61: 055 | B61: 周树才 | C61: 4.62 | D61: 94.30 | E61: 435.67
A62: 056 | B62: 周士国 | C62: 8.29 | D62: 94.30 | E62: 781.75
A63: 057 | B63: 史宗林 | C63: 7.2 | D63: 94.30 | E63: 678.96
A64: 058 | B64: 史宗军 | C64: 7.18 | D64: 94.30 | E64: 677.07
A65: 059 | B65: 史宗杰 | C65: 5.52 | D65: 94.30 | E65: 520.54
A66: 060 | B66: 李大国 | C66: 3.32 | D66: 94.30 | E66: 313.08
A67: 061 | B67: 史建波 | C67: 6.63 | D67: 94.30 | E67: 625.21
A68: 062 | B68: 耿树臣 | C68: 6.63 | D68: 94.30 | E68: 625.21
A69: 063 | B69: 耿跃华 | C69: 1.66 | D69: 94.30 | E69: 156.54
A70: 064 | B70: 杨志山 | C70: 8.29 | D70: 94.30 | E70: 781.75
A71: 065 | B71: 李占民 | C71: 4.98 | D71: 94.30 | E71: 469.61
A72: 066 | B72: 王振兴 | C72: 9.95 | D72: 94.30 | E72: =D72*C72 -> 938.29
A73: 067 | B73: 刘士军 | C73: 4.93 | D73: 94.30 | E73: 464.90
A74: 068 | B74: 冯建苍 | C74: 6.4 | D74: 94.30 | E74: 603.52
A75: 069 | B75: 荣振海 | C75: 5.6 | D75: 94.30 | E75: 528.08
A76: 070 | B76: 赵巨 | C76: 7.65 | D76: 94.30 | E76: 721.40
A77: 071 | B77: 刘士东 | C77: 9.78 | D77: 94.30 | E77: 922.25
A78: 072 | B78: 马建友 | C78: 4.65 | D78: 94.30 | E78: 438.50
A79: 073 | B79: 马建宝 | C79: 4.65 | D79: 94.30 | E79: 438.50
A80: 074 | B80: 马金生 | C80: 2.77 | D80: 94.30 | E80: 261.21
A81: 075 | B81: 马建华 | C81: 1.84 | D81: 94.30 | E81: 173.51
A82: 076 | B82: 马志生 | C82: 1.48 | D82: 94.30 | E82: 139.56
A83: 077 | B83: 刘玉芹 | C83: 5.98 | D83: 94.30 | E83: 563.91
A84: 078 | B84: 马艳梅 | C84: 9.44 | D84: 94.30 | E84: 890.19
A85: 079 | B85: 周士芳 | C85: 4.89 | D85: 94.30 | E85: 461.13
A86: 080 | B86: 王宝中 | C86: 4.89 | D86: 94.30 | E86: 461.13
A87: 081 | B87: 李玉珍 | C87: 4.89 | D87: 94.30 | E87: 461.13
A88: 082 | B88: 马东山 | C88: 1.63 | D88: 94.30 | E88: 153.71
A89: 083 | B89: 佟贵 | C89: 10.7 | D89: 94.30 | E89: 1009.01
A90: 084 | B90: 佟贵 | C90: 29.66 | D90: 94.30 | E90: 2796.94
A91: 085 | B91: 佟会得 | C91: 1.5 | D91: 94.30 | E91: 141.45
A92: 086 | B92: 刘瑞丰 | C92: 5 | D92: 94.30 | E92: 471.50
A93: 087 | B93: 刘宝增 | C93: 6 | D93: 94.30 | E93: 565.80
A94: 088 | B94: 刘永增 | C94: 6.11 | D94: 94.30 | E94: 576.17
A95: 089 | B95: 徐秀荣 | C95: 5.4 | D95: 94.30 | E95: 509.22
A96: 090 | B96: 荣振顺 | C96: 2.42 | D96: 94.30 | E96: 228.21
A97: 091 | B97: 刘海全 | C97: 6.25 | D97: 94.30 | E97: 589.38
A98: 092 | B98: 荣振中 | C98: 3.94 | D98: 94.30 | E98: 371.54
A99: 093 | B99: 杜斌良 | C99: 2.32 | D99: 94.30 | E99: 218.78
A100: 094 | B100: 杨连英 | C100: 1.85 | D100: 94.30 | E100: 174.46
A101: 095 | B101: 闫淑霞 | C101: 4.78 | D101: 94.30 | E101: 450.75
A102: 096 | B102: 付保国 | C102: 3.39 | D102: 94.30 | E102: 319.68
A103: 097 | B103: 刘绍明 | C103: 5.4 | D103: 94.30 | E103: 509.22
A104: 098 | B104: 刘海军 | C104: 5.64 | D104: 94.30 | E104: 531.85
A105: 099 | B105: 刘少双 | C105: 2.04 | D105: 94.30 | E105: 192.37
A106: 100 | B106: 刘绍金 | C106: 5.3 | D106: 94.30 | E106: 499.79
A107: 101 | B107: 刘绍武 | C107: 5.3 | D107: 94.30 | E107: 499.79
A108: 102 | B108: 冯继苍 | C108: 7.13 | D108: 94.30 | E108: 672.36
A109: 103 | B109: 刘少春 | C109: 6.52 | D109: 94.30 | E109: 614.84
A110: 104 | B110: 刘绍合 | C110: 7.82 | D110: 94.30 | E110: 737.43
A111: 105 | B111: 刘绍山 | C111: 6.69 | D111: 94.30 | E111: 630.87
A112: 106 | B112: 王文和 | C112: 6.52 | D112: 94.30 | E112: 614.84
A113: 107 | B113: 王瑞生 | C113: 2.92 | D113: 94.30 | E113: 275.36
A114: 108 | B114: 王立静 | C114: 5.1 | D114: 94.30 | E114: 480.93
A115: 109 | B115: 王瑞来 | C115: 3.01 | D115: 94.30 | E115: 283.84
A116: 110 | B116: 王瑞浮 | C116: 2.67 | D116: 94.30 | E116: 251.78
A117: 111 | B117: 王文宝 | C117: 5.23 | D117: 94.30 | E117: 493.19
A118: 112 | B118: 荣希前 | C118: 6.02 | D118: 94.30 | E118: 567.69
A119: 113 | B119: 荣希田 | C119: 7.52 | D119: 94.30 | E119: 709.14
A120: 114 | B120: 刘士国 | C120: 5.11 | D120: 94.30 | E120: 481.87
A121: 115 | B121: 刘士得 | C121: 2 | D121: 94.30 | E121: 188.60
A122: 116 | B122: 纪会江 | C122: 6.52 | D122: 94.30 | E122: 614.84
A123: 117 | B123: 荣振宽 | C123: 7.8 | D123: 94.30 | E123: 735.54
A124: 118 | B124: 李小聪 | C124: 6.82 | D124: 94.30 | E124: 643.13
A125: 119 | B125: 王子玲 | C125: 3.7 | D125: 94.30 | E125: 348.91
A126: 120 | B126: 荣东生 | C126: 5.74 | D126: 94.30 | E126: 541.28
A127: 121 | B127: 刘少拥 | C127: 2.94 | D127: 94.30 | E127: 277.24
A128: 122 | B128: 刘少西 | C128: 0.9 | D128: 94.30 | E128: 84.87
A129: 123 | B129: 刘秀珍 | C129: 0.64 | D129: 94.30 | E129: 60.35
A130: 124 | B130: 荣振永 | C130: 3.57 | D130: 94.30 | E130: 336.65
A131: 125 | B131: 冯兆苍 | C131: 3.73 | D131: 94.30 | E131: 351.74
A132: 126 | B132: 刘爱民 | C132: 3.15 | D132: 94.30 | E132: 297.05
A133: 127 | B133: 刘士贵 | C133: 2.3 | D133: 94.30 | E133: 216.89
A134: 128 | B134: 刘爱华 | C134: 5.22 | D134: 94.30 | E134: 492.25
A135: 129 | B135: 荣希章 | C135: 0 | D135: 94.30 | E135: 0.00
A136: 130 | B136: 荣双明 | C136: 9.43 | D136: 94.30 | E136: =D136*C136 -> 889.25
A137: 131 | B137: 刘爱中 | C137: 4.16 | D137: 94.30 | E137: 392.29
A138: 132 | B138: 刘士宝 | C138: 4.59 | D138: 94.30 | E138: 432.84
A139: 133 | B139: 刘士民 | C139: 5.71 | D139: 94.30 | E139: 538.45
A140: 134 | B140: 刘绍秋 | C140: 6.02 | D140: 94.30 | E140: 567.69
A141: 135 | B141: 荣希明 | C141: 8.15 | D141: 94.30 | E141: 768.55
A142: 136 | B142: 荣希白 | C142: 6.52 | D142: 94.30 | E142: 614.84
A143: 137 | B143: 张金舫 | C143: 6.04 | D143: 94.30 | E143: 569.57
A144: 138 | B144: 石全 | C144: 6.24 | D144: 94.30 | E144: 588.43
A145: 139 | B145: 石长宽 | C145: 0 | D145: 94.30 | E145: 0.00
A146: 140 | B146: 石福 | C146: 6.52 | D146: 94.30 | E146: 614.84
A147: 141 | B147: 王满苍 | C147: 0 | D147: 94.30 | E147: 0.00
A148: 142 | B148: 王满兴 | C148: 6.23 | D148: 94.30 | E148: 587.49
A149: 143 | B149: 王满忠 | C149: 6.24 | D149: 94.30 | E149: 588.43
A150: 144 | B150: 王满全 | C150: 6 | D150: 94.30 | E150: 565.80
A151: 145 | B151: 陈庆红 | C151: 5.77 | D151: 94.30 | E151: 544.11
A152: 146 | B152: 刘艳芝 | C152: 5.73 | D152: 94.30 | E152: 540.34
A153: 147 | B153: 陈国礼 | C153: 8.09 | D153: 94.30 | E153: 762.89
A154: 148 | B154: 张景胜 | C154: 6.79 | D154: 94.30 | E154: 640.30
A155: 149 | B155: 张井合 | C155: 4.97 | D155: 94.30 | E155: 468.67
A156: 150 | B156: 王全得 | C156: 6.99 | D156: 94.30 | E156: 659.16
A157: 151 | B157: 王瑞友 | C157: 7.8 | D157: 94.30 | E157: 735.54
A158: 152 | B158: 张立顺 | C158: 7.18 | D158: 94.30 | E158: 677.07
A159: 153 | B159: 王国利 | C159: 5.41 | D159: 94.30 | E159: 510.16
A160: 154 | B160: 王国亮 | C160: 5.45 | D160: 94.30 | E160: 513.94
A161: 155 | B161: 王国余 | C161: 5.51 | D161: 94.30 | E161: 519.59
A162: 156 | B162: 王国友 | C162: 0 | D162: 94.30 | E162: 0.00
A163: 157 | B163: 王国永 | C163: 7.13 | D163: 94.30 | E163: 672.36
A164: 158 | B164: 王国生 | C164: 5.65 | D164: 94.30 | E164: 532.80
A165: 159 | B165: 王化安 | C165: 7 | D165: 94.30 | E165: 660.10
A166: 160 | B166: 陈庆华 | C166: 7.04 | D166: 94.30 | E166: 663.87
A167: 161 | B167: 俞全生 | C167: 5.31 | D167: 94.30 | E167: 500.73
A168: 162 | B168: 王浩宇 | C168: 6.87 | D168: 94.30 | E168: 647.84
A169: 163 | B169: 王东生 | C169: 6.89 | D169: 94.30 | E169: 649.73
A170: 164 | B170: 石俊存 | C170: 6.65 | D170: 94.30 | E170: 627.10
A171: 165 | B171: 张立生 | C171: 5.96 | D171: 94.30 | E171: 562.03
A172: 166 | B172: 王小军 | C172: 8.48 | D172: 94.30 | E172: 799.66
A173: 167 | B173: 张树军 | C173: 5.87 | D173: 94.30 | E173: 553.54
A174: 168 | B174: 张树海 | C174: 4.34 | D174: 94.30 | E174: 409.26
A175: 169 | B175: 王满义 | C175: 6.24 | D175: 94.30 | E175: 588.43
A176: 170 | B176: 王振启 | C176: 4.99 | D176: 94.30 | E176: 470.56
A177: 171 | B177: 石长兰 | C177: 3.53 | D177: 94.30 | E177: 332.88
A178: 172 | B178: 王振生 | C178: 5.88 | D178: 94.30 | E178: 554.48
A179: 173 | B179: 王振东 | C179: 6.27 | D179: 94.30 | E179: 591.26
A180: 174 | B180: 王国江 | C180: 7.8 | D180: 94.30 | E180: 735.54
A181: 175 | B181: 石文山 | C181: 5 | D181: 94.30 | E181: 471.50
A182: 176 | B182: 王新堂 | C182: 4.79 | D182: 94.30 | E182: 451.70
A183: 177 | B183: 石俊山 | C183: 5.21 | D183: 94.30 | E183: 491.30
A184: 178 | B184: 杨秀娟 | C184: 5.2 | D184: 94.30 | E184: 490.36
A185: 179 | B185: 李景娟 | C185: 6.17 | D185: 94.30 | E185: 581.83
A186: 180 | B186: 王国合 | C186: 6 | D186: 94.30 | E186: 565.80
A187: 181 | B187: 张久明 | C187: 4.31 | D187: 94.30 | E187: 406.43
A188: 182 | B188: 张春山 | C188: 5.84 | D188: 94.30 | E188: 550.71
A189: 183 | B189: 王贵堂 | C189: 5.56 | D189: 94.30 | E189: 524.31
A190: 184 | B190: 石柱 | C190: 7.5 | D190: 94.30 | E190: 707.25
A191: 185 | B191: 王瑞龙 | C191: 3.17 | D191: 94.30 | E191: 298.93
A192: 186 | B192: 王文华 | C192: 3.58 | D192: 94.30 | E192: 337.59
A193: 187 | B193: 王国成 | C193: 7.5 | D193: 94.30 | E193: 707.25
A194: 188 | B194: 王国明 | C194: 7.17 | D194: 94.30 | E194: 676.13
A195: 189 | B195: 石路山 | C195: 2.05 | D195: 94.30 | E195: 193.32
A196: 190 | B196: 石福臣 | C196: 6.24 | D196: 94.30 | E196: 588.43
A197: 191 | B197: 石春山 | C197: 4.68 | D197: 94.30 | E197: 441.32
A198: 192 | B198: 俞全良 | C198: 7.02 | D198: 94.30 | E198: 661.99
A199: 193 | B199: 王学强 | C199: 6.63 | D199: 94.30 | E199: 625.21
A200: 194 | B200: 王学刚 | C200: 6.79 | D200: 94.30 | E200: =D200*C200 -> 640.30
A201: 195 | B201: 王学敏 | C201: 1.84 | D201: 94.30 | E201: 173.51
A202: 196 | B202: 王国彬 | C202: 5.51 | D202: 94.30 | E202: 519.59
... 14258 more rows

Sheet Sheet2
